fUSD/lending_fUSD_20241224
["ID","MTS","AMOUNT","RATE_DAILY","PERIOD"]
[346550049,1735075846515,-54164.89575529,0.00013,2]
[346550076,1735075846767,-556.17880764,0.00013,2]
[346550078,1735075846778,-8046.69939553,0.00013,2]
[346550080,1735075846789,-51396.57904,0.00013,2]
[346550088,1735075846851,-3999.42611812,0.00013,2]
[346550103,1735075846989,-1145.93460678,0.00013,2]
[346550667,1735076424090,166.25,9.312e-05,2]
[346550668,1735076743488,233.75,9.447e-05,2]
[346550669,1735076743510,400.0,9.447e-05,2]
[346550670,1735076743534,332.6,9.447e-05,2]
[346550679,1735077032030,-1155.26994558,0.0001,2]
[346550680,1735077032048,-3604.72047646,0.0001,2]
[346550681,1735077032178,-988.3344858,0.0001,2]
[346550682,1735077032190,-1863.13950464,0.0001,2]
[346550683,1735077032201,-4492.7795339,0.0001,2]
[346550684,1735077032213,-1506.20365572,0.0001,2]
[346550685,1735077032224,-791.83783909,0.0001,2]
[346550686,1735077032235,-279.69657276,0.0001,2]
[346550687,1735077032246,-1075.43,0.0001,2]
[346550688,1735077032268,-1027.69310528,0.0001,2]
[346550689,1735077032279,-31083.835,0.0001,2]
[346550690,1735077032336,-761.54733521,0.0001,2]
[346550691,1735077032369,-1369.51254556,0.0001,2]
[346550692,1735077032378,-350.2,0.00010137,2]
[346550693,1735077032387,-6132.70411371,0.000105,2]
[346550694,1735077032435,-43867.29588629,0.000105,2]
[346550695,1735077032444,-29089.73554717,0.00011,2]
[346550727,1735077038252,-20910.26445283,0.00011,2]
[346550728,1735077038262,-413.78,0.00011207,2]
[346550729,1735077038271,-400.0,0.0001125,2]
[346550730,1735077038280,-3082.21,0.00011265,2]
[346550731,1735077038289,-1000.0,0.000114,2]
[346550732,1735077038298,-1183.52,0.0001143,2]
[346550733,1735077038307,-500.0,0.00011505,2]
[346550734,1735077038316,-150.0,0.00011507,2]
[346550735,1735077038326,-862.85,0.00011507,2]
[346550737,1735077038335,-12412.5,0.00011521,2]
[346550739,1735077038343,-2108.45,0.00011543,2]
[346550741,1735077038353,-191.74,0.00011602,2]
[346550743,1735077038362,-500.0,0.00011644,2]
[346550745,1735077038371,-250.0,0.00011644,2]
[346550747,1735077038380,-46004.17,0.0001165,2]
[346550749,1735077038389,-966.35,0.00011711,2]
[346550751,1735077038398,-23900.0,0.00011896,2]
[346550753,1735077038407,-285.21,0.000119,2]
[346550755,1735077038418,-221.99,0.00011946,2]
[346550757,1735077038427,-365.25,0.00011978,2]
[346550759,1735077038436,-333.41,0.00011983,2]
[346550761,1735077038445,-50000.0,0.00012,2]
[346550763,1735077038454,-250.0,0.00012001,2]
[346550765,1735077038465,-165.19,0.00012004,2]
[346550767,1735077038474,-977.57,0.00012078,2]
[346550769,1735077038483,-250.0,0.00012181,2]
[346550771,1735077038492,-166.75,0.00012198,2]
[346550773,1735077038501,-517.745,0.0001235,2]
[346550775,1735077038510,-160.73,0.00012353,2]
[346550777,1735077038519,-160.73,0.00012415,2]
[346550779,1735077038528,-500.0,0.00012438,2]
[346550781,1735077038538,-500.0,0.0001247,2]
[346550783,1735077038547,-285.4375258,0.00012739,2]
[346550785,1735077038555,-158.94184706,0.00012778,2]
[346550787,1735077038564,-1914.36,0.00012821,2]
[346550789,1735077038573,-1000.0,0.00012825,2]
[346550791,1735077038582,-1183.52,0.00012858,2]
[346550792,1735077038592,-2011.0,0.00012878,2]
[346550794,1735077038601,-1899.0,0.00012878,2]
[346550797,1735077038610,-3771.0,0.00012878,2]
[346550799,1735077038620,-3683.0,0.00012878,2]
[346550801,1735077038629,-483.104,0.00012878,2]
[346550802,1735077038638,-3659.979,0.00012878,2]
[346550804,1735077038646,-150.0,0.00012878,2]
[346550806,1735077038655,-500.0,0.00012896,2]
[346550808,1735077038666,-2000.0,0.00012896,2]
[346550810,1735077038675,-1000.0,0.000129,2]
[346550812,1735077038684,-722.0,0.000129,3]
[346550814,1735077038694,-1000.0,0.000129,3]
[346550816,1735077038703,-732.49576528,0.000129,2]
[346550818,1735077038712,-6177.10985193,0.000129,2]
[346550822,1735077038738,-3848.24778004,0.000129,2]
[346550823,1735077038748,-59.62746365,0.000129,2]
[346550824,1735077038757,-658.076561,0.00012996,2]
[346550825,1735077038766,-470.8184423,0.00012996,2]
[346550826,1735077038775,-613.84394299,0.00012997,2]
[346550827,1735077038805,-52.27856301,0.00012997,2]
[346550828,1735077038814,-251.02018504,0.00012997,2]
[346550829,1735077038826,-415.10232096,0.00012997,2]
[346550830,1735077038835,-666.122506,0.00012997,2]
[346550831,1735077038844,-373.09771654,0.00012997,2]
[346550832,1735077038855,-293.02478946,0.00012997,2]
[346550833,1735077038869,-666.122506,0.00012997,2]
[346550834,1735077038882,-666.122506,0.00012997,2]
[346550835,1735077038893,-291.07019854,0.00012997,2]
[346550837,1735077038912,-375.05230746,0.00012997,2]
[346550839,1735077038922,-666.122506,0.00012997,2]
[346550841,1735077038931,-666.122506,0.00012997,2]
[346550843,1735077038940,-666.122506,0.00012997,2]
[346550845,1735077038950,-26.32066835,0.00012998,2]
[346550853,1735077039014,-639.80183765,0.00012998,2]
[346550855,1735077039023,-666.122506,0.00012998,2]
[346550856,1735077039032,-666.122506,0.00012998,2]
[346550858,1735077039041,-666.122506,0.00012998,2]
[346550860,1735077039051,-666.122506,0.00012998,2]
[346550862,1735077039060,-666.122506,0.00012998,2]
[346550864,1735077039069,-666.122506,0.00012998,2]
[346550866,1735077039078,-88.11521375,0.00012998,2]
[346550971,1735077039998,-578.00729225,0.00012998,2]
[346550972,1735077040007,-229.93785752,0.00012998,2]
[346550973,1735077040018,-436.18464848,0.00012998,2]
[346550974,1735077040028,-229.13219152,0.00012998,2]
[346550975,1735077040039,-436.99031448,0.00012998,2]
[346550976,1735077040047,-666.122506,0.00012999,2]
[346550977,1735077040056,-666.122506,0.00012999,2]
[346550978,1735077040065,-666.122506,0.00012999,2]
[346550979,1735077040074,-666.122506,0.00012999,2]
[346550980,1735077040083,-666.122506,0.00012999,2]
[346550981,1735077040093,-666.122506,0.00012999,2]
[346550995,1735077040281,-666.122506,0.00012999,2]
[346550997,1735077040292,-666.122506,0.00012999,2]
[346550999,1735077040301,-666.122506,0.00012999,2]
[346551001,1735077040310,-666.122506,0.00012999,2]
[346551003,1735077040320,-666.122506,0.00012999,2]
[346551005,1735077040329,-666.122506,0.00012999,2]
[346551007,1735077040339,-409.45542527,0.00012999,2]
[346551014,1735077040396,-256.66708073,0.00012999,2]
[346551016,1735077040405,-320.79497865,0.00012999,2]
[346551022,1735077040451,-289.90052373,0.00012999,2]
[346551024,1735077040462,-55.42700362,0.00012999,2]
[346551026,1735077040475,-666.122506,0.00012999,2]
[346551028,1735077040484,-478.24903704,0.00012999,2]
[346551244,1735077043023,-187.87346896,0.00012999,2]
[346551246,1735077043033,-108.26096439,0.00012999,2]
[346551248,1735077043044,-557.86154161,0.00012999,2]
[346551250,1735077043054,-666.122506,0.00012999,2]
[346551252,1735077043064,-666.122506,0.00012999,2]
[346551254,1735077043073,-666.122506,0.00012999,2]
[346551256,1735077043082,-666.122506,0.00012999,2]
[346551258,1735077043091,-666.122506,0.00012999,2]
[346551260,1735077043101,-666.122506,0.00012999,2]
[346551262,1735077043111,-666.122506,0.00012999,2]
[346551264,1735077043120,-666.122506,0.00012999,2]
[346551266,1735077043130,-666.122506,0.00012999,2]
[346551268,1735077043140,-147.9159442,0.00012999,2]
[346551271,1735077043151,-518.2065618,0.00012999,2]
[346551273,1735077043161,-666.122506,0.00012999,2]
[346551275,1735077043171,-666.122506,0.00012999,2]
[346551277,1735077043180,-666.122506,0.00012999,2]
[346551279,1735077043190,-666.122506,0.00012999,2]
[346551281,1735077043199,-666.122506,0.00012999,2]
[346551283,1735077043208,-666.122506,0.00012999,2]
[346551285,1735077043217,-666.122506,0.00012999,2]
[346551287,1735077043226,-666.122506,0.00012999,2]
[346551289,1735077043236,-666.122506,0.00012999,2]
[346551291,1735077043245,-666.122506,0.00012999,2]
[346551293,1735077043254,-666.122506,0.00012999,2]
[346551295,1735077043263,-666.122506,0.00012999,2]
[346551297,1735077043272,-666.122506,0.00012999,2]
[346551299,1735077043281,-666.122506,0.00012999,2]
[346551301,1735077043291,-666.122506,0.00012999,2]
[346551303,1735077043300,-666.122506,0.00012999,2]
[346551305,1735077043309,-666.122506,0.00012999,2]
[346551307,1735077043318,-666.122506,0.00012999,2]
[346551309,1735077043328,-666.122506,0.00012999,2]
[346551311,1735077043337,-666.122506,0.00012999,2]
[346551313,1735077043346,-666.122506,0.00012999,2]
[346551315,1735077043355,-666.122506,0.00012999,2]
[346551317,1735077043365,-666.122506,0.00012999,2]
[346551319,1735077043374,-666.122506,0.00012999,2]
[346551321,1735077043384,-666.122506,0.00012999,2]
[346551323,1735077043394,-666.122506,0.00012999,2]
[346551325,1735077043403,-666.122506,0.00012999,2]
[346551327,1735077043413,-666.122506,0.00012999,2]
[346551329,1735077043423,-666.122506,0.00012999,2]
[346551331,1735077043432,-666.122506,0.00012999,2]
[346551333,1735077043442,-666.122506,0.00012999,2]
[346551335,1735077043452,-666.122506,0.00012999,2]
[346551337,1735077043460,-666.122506,0.00012999,2]
[346551339,1735077043469,-666.122506,0.00012999,2]
[346551341,1735077043478,-666.122506,0.00012999,2]
[346551343,1735077043487,-617.122506,0.00012999,2]
[346551345,1735077043496,-60387.93978315,0.00013,2]
[346551347,1735077043505,-1340916.10712579,0.00013,2]
[346551349,1735077043517,-645.12,0.00013,2]
[346551352,1735077043534,-545.0599996,0.00013,2]
[346551355,1735077043550,-3713.11158809,0.00013,2]
[346551357,1735077043561,-3700.04995,0.00013,2]
[346551362,1735077043601,-296.21242944,0.00013,2]
[346551386,1735077043815,-826.63609716,0.00013,2]
[346551487,1735077045992,-337.32430201,0.00013,2]
[346551488,1735077046003,-368.59854387,0.00013,2]
[346551489,1735077046015,-5773.08,0.00013,2]
[346551490,1735077046060,-1016.32085,0.00013,2]
[346551491,1735077046104,-18566.55176146,0.00013,2]
[346551492,1735077046135,-2222.73259401,0.00013,2]
[346551493,1735077046175,-4702.36639576,0.00013,2]
[346551494,1735077046247,-49516.89251067,0.00013,2]
[346551495,1735077046258,-343.1944615,0.00013,2]
[346551498,1735077464527,-301.56,0.00010137,2]
[346551499,1735077464549,-250.0,0.00012321,2]
[346551500,1735077464570,-165.49,0.00012428,2]
[346551501,1735077464591,-250.0,0.00012473,2]
[346551502,1735077464614,-23900.0,0.00012512,2]
[346551503,1735077464638,-250.0,0.00012682,2]
[346551504,1735077464660,-2969.8083,0.000128,2]
[346551505,1735077464680,-2000.0,0.00012896,2]
[346551506,1735077464701,-1434.06979652,0.00012899,5]
[346551507,1735077464723,-5712.2133,0.000129,2]
[346551508,1735077464744,-977.57,0.000129,2]
[346551509,1735077464766,-962.13,0.000129,2]
[346551510,1735077464787,-920.43,0.000129,2]
[346551511,1735077464807,-27000.28964964,0.000129,2]
[346551512,1735077464827,-173.35922363,0.00013,2]
[346551513,1735077464851,-44846.07973021,0.00013,2]
[346551514,1735077470247,-100000.0,0.00013,2]
[346551515,1735077471233,-100000.0,0.00013,2]
[346551516,1735077471424,-100000.0,0.00013,2]
[346551533,1735078232129,-287.11562672,0.00010573,2]
[346551534,1735078232346,-0.86324429,0.00010573,2]
[346551535,1735078232391,-638.84112899,0.00010573,2]
[346551536,1735078232400,-209.0,0.00012082,2]
[346551537,1735078232410,-8739.17920912,0.00012177,2]
[346551538,1735078232420,-785.62130943,0.00012177,2]
[346551539,1735078232431,-5483.58920946,0.00012177,2]
[346551540,1735078232442,-1051.91400922,0.00012177,2]
[346551541,1735078232453,-930.99005874,0.00012177,2]
[346551553,1735078238203,-156.43620403,0.00012177,2]
[346551554,1735078238216,-993.56379597,0.00012285,2]
[346551555,1735078238227,-60.65620403,0.00012285,2]
[346551556,1735078238236,-400.0,0.00012325,2]
[346551557,1735078238245,-39.34379597,0.00012349,2]
[346551621,1735078240225,-1560.96620403,0.00012349,2]
[346551622,1735078240235,-496.407,0.0001235,2]
[346551623,1735078240244,-1000.0,0.00012531,2]
[346551624,1735078240254,-977.57,0.000126,2]
[346551625,1735078240263,-480.7,0.00012606,2]
[346551626,1735078240465,-977.57,0.000127,2]
[346551627,1735078240475,-872.84,0.000127,2]
[346551628,1735078240484,-1531.488,0.00012826,2]
[346551629,1735078240493,-926.82,0.00012837,2]
[346551630,1735078240503,-150.0,0.00012878,2]
[346551631,1735078240512,-500.0,0.00012896,2]
[346551632,1735078240521,-2000.0,0.00012896,2]
[346551633,1735078240530,-500.0,0.00012999,2]
[346551634,1735078240541,-500.0,0.00012999,2]
[346551635,1735078240550,-500.0,0.00012999,2]
[346551636,1735078240560,-156.1234115,0.00012999,2]
[346551637,1735078240570,-500.0,0.00012999,2]
[346551638,1735078240582,-500.0,0.00012999,2]
[346551640,1735078240590,-500.0,0.00012999,2]
[346551642,1735078240599,-288.84790612,0.00012999,2]
[346551644,1735078240609,-525.70330538,0.00012999,2]
[346551646,1735078240618,-500.0,0.00012999,2]
[346551648,1735078240627,-500.0,0.00012999,2]
[346551650,1735078240635,-500.0,0.00012999,2]
[346551652,1735078240646,-500.0,0.00012999,2]
[346551653,1735078240655,-500.0,0.00012999,2]
[346551654,1735078240664,-500.0,0.00012999,2]
[346551655,1735078240673,-500.0,0.00012999,2]
[346551656,1735078240681,-500.0,0.00012999,2]
[346551657,1735078240691,-500.0,0.00012999,2]
[346551658,1735078240700,-500.0,0.00012999,2]
[346551659,1735078240709,-257.4325699,0.00012999,2]
[346551660,1735078240718,-500.0,0.00012999,2]
[346551661,1735078240727,-500.0,0.00012999,2]
[346551662,1735078240735,-500.0,0.00012999,2]
[346551663,1735078240745,-500.0,0.00012999,2]
[346551664,1735078240754,-530.53690858,0.00012999,2]
[346551665,1735078240763,-500.0,0.00012999,2]
[346551666,1735078240772,-500.0,0.00012999,2]
[346551667,1735078240781,-500.0,0.00012999,2]
[346551668,1735078240790,-500.0,0.00012999,2]
[346551669,1735078240799,-500.0,0.00012999,2]
[346551670,1735078240809,-500.0,0.00012999,2]
[346551671,1735078240818,-500.0,0.00012999,2]
[346551672,1735078240827,-500.0,0.00012999,2]
[346551673,1735078240836,-500.0,0.00012999,2]
[346551674,1735078240845,-500.0,0.00012999,2]
[346551675,1735078240855,-2561627.64727249,0.00013,2]
[346551676,1735078240864,-2234588.60176094,0.00013,2]
[346551677,1735078240875,-957.49,0.00013,2]
[346551678,1735078240887,-1696.15000002,0.00013,2]
[346551679,1735078240942,-877.5299894,0.00013,2]
[346551680,1735078240953,-77550.45940723,0.00013,2]
[346551681,1735078240964,-121791.30887894,0.00013,2]
[346551682,1735078240975,-59236.4999796,0.00013,2]
[346551683,1735078240985,-95623.0,0.00013,2]
[346551684,1735078241041,-1100.817,0.00013,2]
[346551685,1735078241052,-1252.66551441,0.00013,2]
[346551686,1735078241063,-333.58518724,0.00013,2]
[346551687,1735078241126,-861.64145334,0.00013,2]
[346551688,1735078241137,-24192.89000333,0.00013,2]
[346551689,1735078241161,-814.6,0.00013,2]
[346551690,1735078241172,-216737.52861187,0.00013,2]
[346551691,1735078241183,-8370.22863366,0.00013,2]
[346551706,1735078243313,-562.39668,0.00013,2]
[346551707,1735078243332,-419.81087525,0.00013,2]
[346551708,1735078243349,-2426.8,0.00013,2]
[346551709,1735078243368,-115960.78293299,0.00013,2]
[346551710,1735078243408,-487.98,0.00013,2]
[346551711,1735078243426,-505.79,0.00013,2]
[346551712,1735078243443,-984.9,0.00013,2]
[346551713,1735078243461,-7509.99559041,0.00013,2]
[346551714,1735078243479,-744.5,0.00013,2]
[346551715,1735078243504,-3321.3575506,0.00013,2]
[346551716,1735078243576,-472.49999847,0.00013,2]
[346551725,1735078246143,-2122.4739642,0.00013,2]
[346551726,1735078246154,-594.352063,0.00013,2]
[346551727,1735078246165,-401.96291768,0.00013,2]
[346551728,1735078246177,-2058.51252351,0.00013,2]
[346551729,1735078246262,-5804.15155352,0.00013,2]
[346551730,1735078246274,-7333.18851848,0.00013,2]
[346551731,1735078246284,-43629.44430406,0.00013,2]
[346551732,1735078246296,-9958.5,0.00013,2]
[346551733,1735078246307,-8419.5435418,0.00013,2]
[346551734,1735078246367,-878.561366,0.00013,2]
[346551735,1735078246378,-20681.5932,0.00013,2]
[346551736,1735078246421,-40124.81351,0.00013,2]
[346551737,1735078246433,-1264.76750391,0.00013,2]
[346551794,1735079190697,6000.0,0.00019,30]
[346551795,1735079211809,2676.48,9.606e-05,2]
[346551829,1735079432418,-346.8,0.00010137,2]
[346551830,1735079432428,-517.20000011,0.00010666,2]
[346551831,1735079432441,-431.05999989,0.00010666,2]
[346551832,1735079432450,-500.0,0.00011932,2]
[346551833,1735079432460,-500.0,0.00012,2]
[346551834,1735079432470,-165.49,0.00012032,2]
[346551835,1735079432479,-250.0,0.00012095,2]
[346551836,1735079432488,-250.0,0.00012112,2]
[346551837,1735079432497,-1562.55376727,0.00012209,2]
[346551838,1735079432508,-1151.55012815,0.00012209,2]
[346551839,1735079432520,-256.7011023,0.00012209,2]
[346551840,1735079432531,-20219.46500228,0.00012209,2]
[346551841,1735079432540,-1000.0,0.00012214,2]
[346551842,1735079432550,-1000.56,0.0001225,2]
[346551843,1735079432561,-490.098,0.0001235,2]
[346551844,1735079432572,-808.96,0.00012359,2]
[346551845,1735079432581,-365.25,0.00012378,2]
[346551846,1735079432591,-365.25,0.000124,2]
[346551847,1735079432601,-973.19,0.000124,2]
[346551848,1735079432615,-433.17,0.000124,2]
[346551849,1735079432625,-400.0,0.00012407,2]
[346551850,1735079432634,-250.0,0.00012451,2]
[346551851,1735079432644,-1101.0,0.00012878,2]
[346551852,1735079432653,-3886.0,0.00012878,2]
[346551853,1735079432662,-635.0,0.00012878,2]
[346551854,1735079432671,-150.0,0.00012878,2]
[346551855,1735079432680,-500.0,0.00012896,2]
[346551856,1735079432689,-2000.0,0.00012896,2]
[346551857,1735079432699,-165.15,0.00012899,2]
[346551858,1735079432707,-3769.66931442,0.000129,2]
[346551859,1735079432719,-708.35088558,0.000129,2]
[346551860,1735079432728,-6757.7417,0.000129,2]
[346551861,1735079432737,-1347.73012777,0.000129,2]
[346551862,1735079432745,-948.26,0.0001293,2]
[346551863,1735079432754,-1225.191,0.0001293,2]
[346551864,1735079432763,-296.85395155,0.00013,2]
[346551865,1735079432772,-57969.51810281,0.00013,2]
[346551866,1735079432783,-2762.48129656,0.00013,2]
[346551867,1735079432814,-339.624,0.00013,2]
[346551868,1735079432825,-278.06409137,0.00013,2]
[346551869,1735079432841,-281.28988996,0.00013,2]
[346551870,1735079432851,-4907.25207333,0.00013,2]
[346551871,1735079432881,-527.94100337,0.00013,2]
[346552004,1735079438281,-1170.0,0.00012878,2]
[346552005,1735079438296,-7834.9300324,0.00012878,2]
[346552006,1735079438393,-791.7279676,0.00012878,2]
[346552007,1735079438408,-7541.5203024,0.00013,2]
[346552008,1735079438425,-250.49,0.00013,2]
[346552009,1735079438497,-500.0,0.00013,2]
[346552010,1735079438516,-709.6985612,0.00013,2]
[346552011,1735079438533,-1983.84423874,0.00013,2]
[346552012,1735079438550,-5019.26503601,0.00013,2]
[346552013,1735079438571,-968.30542425,0.00013,2]
[346552096,1735079440467,-381.28266465,0.00013,2]
[346552097,1735079440479,-717.70335969,0.00013,2]
[346552098,1735079440490,-1761.16270251,0.00013,2]
[346552099,1735079440502,-393.907294,0.00013,2]
[346552100,1735079440514,-4943.0,0.00013,2]
[346552101,1735079443216,-177931.89427187,0.00013,2]
[346552102,1735079443255,-26237.34425571,0.00013,2]
[346552103,1735079443266,-484.4746399,0.00013,2]
[346552104,1735079443277,-441.59759968,0.00013,2]
[346552105,1735079443288,-265.68979824,0.00013,2]
[346552108,1735079443367,-7540.55897119,0.00013,2]
[346552109,1735079443513,-36180.00128,0.00013,2]
[346552110,1735079443543,-135960.94493335,0.00013,2]
[346552111,1735079443603,-956.75,0.00013,2]
[346552112,1735079443713,-46036.17808214,0.00013,2]
[346552113,1735079443725,-735.50318015,0.00013,2]
[346552120,1735079446365,-311.682,0.00012878,2]
[346552121,1735079446376,-181406.62611139,0.00013,2]
[346552122,1735079446392,-3014.01734276,0.00013,2]
[346552123,1735079446514,-2028.98400001,0.00013,2]
[346552124,1735079446525,-8540.0,0.00013,2]
[346552125,1735079446536,-36159.99935,0.00013,2]
[346552126,1735079446618,-312.3565202,0.00013,2]
[346552127,1735079446630,-8413.025585,0.00013,2]
[346552128,1735079446642,-1918.88336097,0.00013,2]
[346552129,1735079446696,-293621.2101526,0.00013,2]
[346552144,1735079446900,-535993.1036397,0.00013,2]
[346552146,1735079446911,-1090.87199,0.00013,2]
[346552148,1735079446923,-481.96507016,0.00013,2]
[346552150,1735079446933,-423.65497966,0.00013,2]
[346552152,1735079446944,-9531.58857364,0.00013,2]
[346552169,1735079572462,164.428042,0.00016,15]
[346552170,1735079572557,164.428042,0.00016,15]
[346552171,1735079572725,164.428042,0.00016,15]
[346552172,1735079573019,164.428042,0.00016,15]
[346552173,1735079573582,164.428042,0.00016,15]
[346552174,1735079575327,164.428042,0.00019,30]
[346552175,1735079578016,152.004914,0.00016,15]
[346552176,1735079578333,152.004914,0.00016,15]
[346552177,1735079578629,152.004914,0.00016,15]
[346552179,1735079703303,154.0,0.00019,30]
[346552180,1735079703590,154.0,0.00019,30]
[346552181,1735079703928,154.0,0.00019,30]
[346552182,1735079704208,154.0,0.00019,30]
[346552183,1735079704501,154.0,0.00019,30]
[346552184,1735079704785,154.0,0.00019,30]
[346552185,1735079711192,154.0,0.00019,30]
[346552186,1735079711450,154.0,0.00019,30]
[346552187,1735079711751,154.0,0.00019,30]
[346552189,1735079822466,164.94,9.465e-05,2]
[346552190,1735079910280,6825.98,9.606e-05,2]
[346552191,1735079910302,10000.0,9.606e-05,2]
[346552192,1735079910324,10000.0,9.606e-05,2]
[346552193,1735079910346,10000.0,9.606e-05,2]
[346552194,1735079910368,10000.0,9.606e-05,2]
[346552195,1735079910388,10000.0,9.606e-05,2]
[346552196,1735079910408,10000.0,9.606e-05,2]
[346552197,1735079910429,10000.0,9.606e-05,2]
[346552198,1735079910449,10000.0,9.606e-05,2]
[346552199,1735079910470,10000.0,9.606e-05,2]
[346552200,1735079910492,10000.0,9.606e-05,2]
[346552201,1735079910514,10000.0,9.606e-05,2]
[346552202,1735079910536,10000.0,9.606e-05,2]
[346552203,1735079910558,10000.0,9.606e-05,2]
[346552204,1735079910578,10000.0,9.606e-05,2]
[346552205,1735079910599,10000.0,9.606e-05,2]
[346552206,1735079910619,10000.0,9.606e-05,2]
[346552207,1735079910638,10000.0,9.606e-05,2]
[346552208,1735079910658,10000.0,9.606e-05,2]
[346552209,1735079910678,10000.0,9.606e-05,2]
[346552210,1735079910701,10000.0,9.606e-05,2]
[346552211,1735079910723,10000.0,9.606e-05,2]
[346552212,1735079910743,10000.0,9.606e-05,2]
[346552213,1735079910762,10000.0,9.606e-05,2]
[346552214,1735079910783,10000.0,9.606e-05,2]
[346552215,1735079910807,10000.0,9.606e-05,2]
[346552216,1735079910827,10000.0,9.606e-05,2]
[346552217,1735079910847,10000.0,9.606e-05,2]
[346552218,1735079910868,10000.0,9.606e-05,2]
[346552219,1735079910888,10000.0,9.606e-05,2]
[346552220,1735079910910,10000.0,9.606e-05,2]
[346552221,1735079910931,10000.0,9.606e-05,2]
[346552222,1735079910953,10000.0,9.606e-05,2]
[346552223,1735079910973,10000.0,9.606e-05,2]
[346552224,1735079910994,10000.0,9.606e-05,2]
[346552225,1735079911016,10000.0,9.606e-05,2]
[346552226,1735079911037,10000.0,9.606e-05,2]
[346552227,1735079911057,10000.0,9.606e-05,2]
[346552228,1735079911078,10000.0,9.606e-05,2]
[346552229,1735079911099,10000.0,9.606e-05,2]
[346552230,1735079911120,10000.0,9.606e-05,2]
[346552231,1735079911141,10000.0,9.606e-05,2]
[346552232,1735079911162,10000.0,9.606e-05,2]
[346552233,1735079911183,10000.0,9.606e-05,2]
[346552234,1735079911204,10000.0,9.606e-05,2]
[346552235,1735079911226,10000.0,9.606e-05,2]
[346552236,1735079911248,10000.0,9.606e-05,2]
[346552237,1735079911270,10000.0,9.606e-05,2]
[346552238,1735079911290,10000.0,9.606e-05,2]
[346552239,1735079911313,10000.0,9.606e-05,2]
[346552240,1735079911338,8000.0,9.606e-05,2]
[346552241,1735079916255,17177.33564693,0.00019,30]
[346552242,1735079941890,300.0,9.605e-05,2]
[346552243,1735079945283,11565.9198596,0.00019,60]
[346552244,1735079961621,546835.89960036,9.605e-05,2]
[346552245,1735079961650,269428.12175397,9.605e-05,2]
[346552246,1735079973477,145174.02,9.605e-05,2]
[346552247,1735079973833,1013.9,9.558e-05,2]
[346552248,1735079985819,138045.39899586,0.0001901,120]
[346552249,1735080004763,154.0,0.00016,15]
[346552250,1735080005002,154.0,0.00016,15]
[346552251,1735080005267,154.0,0.00016,15]
[346552252,1735080005578,154.0,0.00016,15]
[346552253,1735080006017,154.0,0.00016,15]
[346552254,1735080208873,166.83,9.353e-05,2]
[346552255,1735080303776,154.0,0.00016,15]
[346552256,1735080304093,154.0,0.00016,15]
[346552295,1735080631527,-971.07,9.714e-05,2]
[346552296,1735080631536,-141.07,0.00010037,2]
[346552297,1735080631548,-1089.69,0.00010037,2]
[346552298,1735080631590,-1272.48123953,0.00010037,2]
[346552299,1735080631600,-294.29,0.00010137,2]
[346552300,1735080631609,-250.0,0.00011491,2]
[346552301,1735080631619,-150.0,0.0001151,2]
[346552302,1735080631629,-400.0,0.00011558,2]
[346552303,1735080631639,-164.96,0.00011627,2]
[346552304,1735080631648,-250.0,0.00011647,2]
[346552305,1735080631657,-250.0,0.00011673,2]